{"text_format":"3","workbook":"xlsx","n_sheets":6,"sheets":["Azul ","Turquesa","Verde","Naranja ","Rojo","Púrpura"],"not_rendered":{"images":6},"read":"whole","date_system":"1900"}

{"sheet":"Azul ","index":0,"n_rows":11,"n_cols":11,"rows_kept":11,"merged":[[1,2,1,10],[10,6,10,9],[11,6,11,9]]}
[]
[null,null,"Rastreador de asignación de Elvira"]
[null,"Tareas","Valor","DOM","LUN","MAR","MIÉ","JUE","VIE","SÁB","Total"]
[null,"Hacer la cama",{"v":0.5,"d":"0.50 €"},1,1,null,1,{"$nulls":3},{"$f":"IF(COUNTIF(TasksTable_Blue6[[#This Row],[DOM]:[SÁB]],\">0\")*TasksTable_Blue6[[#This Row],[Valor]]=0,\"\",COUNTIF(TasksTable_Blue6[[#This Row],[DOM]:[SÁB]],\">0\")*TasksTable_Blue6[[#This Row],[Valor]])","v":{"v":1.5,"d":"1.50 €"}}]
[null,"Recoger juguetes",{"v":0.5,"d":"0.50 €"},null,1,1,{"$nulls":4},{"$f":"IF(COUNTIF(TasksTable_Blue6[[#This Row],[DOM]:[SÁB]],\">0\")*TasksTable_Blue6[[#This Row],[Valor]]=0,\"\",COUNTIF(TasksTable_Blue6[[#This Row],[DOM]:[SÁB]],\">0\")*TasksTable_Blue6[[#This Row],[Valor]])","v":{"v":1,"d":"1.00 €"}}]
[null,"Limpiar habitación",{"v":0.5,"d":"0.50 €"},{"$nulls":7},{"$f":"IF(COUNTIF(TasksTable_Blue6[[#This Row],[DOM]:[SÁB]],\">0\")*TasksTable_Blue6[[#This Row],[Valor]]=0,\"\",COUNTIF(TasksTable_Blue6[[#This Row],[DOM]:[SÁB]],\">0\")*TasksTable_Blue6[[#This Row],[Valor]])","v":""}]
[null,"Limpiar mesa",{"v":1,"d":"1.00 €"},null,null,1,{"$nulls":4},{"$f":"IF(COUNTIF(TasksTable_Blue6[[#This Row],[DOM]:[SÁB]],\">0\")*TasksTable_Blue6[[#This Row],[Valor]]=0,\"\",COUNTIF(TasksTable_Blue6[[#This Row],[DOM]:[SÁB]],\">0\")*TasksTable_Blue6[[#This Row],[Valor]])","v":{"v":1,"d":"1.00 €"}}]
[null,"Barrer el suelo",{"v":1,"d":"1.00 €"},{"$nulls":7},{"$f":"IF(COUNTIF(TasksTable_Blue6[[#This Row],[DOM]:[SÁB]],\">0\")*TasksTable_Blue6[[#This Row],[Valor]]=0,\"\",COUNTIF(TasksTable_Blue6[[#This Row],[DOM]:[SÁB]],\">0\")*TasksTable_Blue6[[#This Row],[Valor]])","v":""}]
[null,"Dar de comer a la mascota",{"v":1,"d":"1.00 €"},1,1,1,1,{"$nulls":3},{"$f":"IF(COUNTIF(TasksTable_Blue6[[#This Row],[DOM]:[SÁB]],\">0\")*TasksTable_Blue6[[#This Row],[Valor]]=0,\"\",COUNTIF(TasksTable_Blue6[[#This Row],[DOM]:[SÁB]],\">0\")*TasksTable_Blue6[[#This Row],[Valor]])","v":{"v":4,"d":"4.00 €"}}]
[null,"Regar las plantas",{"v":1,"d":"1.00 €"},{"$nulls":7},{"$f":"IF(COUNTIF(TasksTable_Blue6[[#This Row],[DOM]:[SÁB]],\">0\")*TasksTable_Blue6[[#This Row],[Valor]]=0,\"\",COUNTIF(TasksTable_Blue6[[#This Row],[DOM]:[SÁB]],\">0\")*TasksTable_Blue6[[#This Row],[Valor]])","v":""}]
[null,"Asignación dada en fecha:","2020-05-05",{"$nulls":3},"Asignación total obtenida:",{"$nulls":3},{"$f":"SUM(TasksTable_Blue6[Total])","v":{"v":7.5,"d":"7.50 €"}}]

{"sheet":"Turquesa","index":1,"n_rows":11,"n_cols":11,"rows_kept":11,"merged":[[1,2,1,10],[10,6,10,9],[11,6,11,9]]}
[]
[null,null,"Rastreador de asignación de Elvira"]
[null,"Tareas","Valor","DOM","LUN","MAR","MIÉ","JUE","VIE","SÁB","Total"]
[null,"Hacer la cama",{"v":0.5,"d":"0.50 €"},1,1,null,1,{"$nulls":3},{"$f":"IF(COUNTIF(TasksTable_Blue67[[#This Row],[DOM]:[SÁB]],\">0\")*TasksTable_Blue67[[#This Row],[Valor]]=0,\"\",COUNTIF(TasksTable_Blue67[[#This Row],[DOM]:[SÁB]],\">0\")*TasksTable_Blue67[[#This Row],[Valor]])","v":{"v":1.5,"d":"1.50 €"}}]
[null,"Recoger juguetes",{"v":0.5,"d":"0.50 €"},null,1,1,{"$nulls":4},{"$f":"IF(COUNTIF(TasksTable_Blue67[[#This Row],[DOM]:[SÁB]],\">0\")*TasksTable_Blue67[[#This Row],[Valor]]=0,\"\",COUNTIF(TasksTable_Blue67[[#This Row],[DOM]:[SÁB]],\">0\")*TasksTable_Blue67[[#This Row],[Valor]])","v":{"v":1,"d":"1.00 €"}}]
[null,"Limpiar habitación",{"v":0.5,"d":"0.50 €"},{"$nulls":7},{"$f":"IF(COUNTIF(TasksTable_Blue67[[#This Row],[DOM]:[SÁB]],\">0\")*TasksTable_Blue67[[#This Row],[Valor]]=0,\"\",COUNTIF(TasksTable_Blue67[[#This Row],[DOM]:[SÁB]],\">0\")*TasksTable_Blue67[[#This Row],[Valor]])","v":""}]
[null,"Limpiar mesa",{"v":1,"d":"1.00 €"},null,null,1,{"$nulls":4},{"$f":"IF(COUNTIF(TasksTable_Blue67[[#This Row],[DOM]:[SÁB]],\">0\")*TasksTable_Blue67[[#This Row],[Valor]]=0,\"\",COUNTIF(TasksTable_Blue67[[#This Row],[DOM]:[SÁB]],\">0\")*TasksTable_Blue67[[#This Row],[Valor]])","v":{"v":1,"d":"1.00 €"}}]
[null,"Barrer el suelo",{"v":1,"d":"1.00 €"},{"$nulls":7},{"$f":"IF(COUNTIF(TasksTable_Blue67[[#This Row],[DOM]:[SÁB]],\">0\")*TasksTable_Blue67[[#This Row],[Valor]]=0,\"\",COUNTIF(TasksTable_Blue67[[#This Row],[DOM]:[SÁB]],\">0\")*TasksTable_Blue67[[#This Row],[Valor]])","v":""}]
[null,"Dar de comer a la mascota",{"v":1,"d":"1.00 €"},1,1,1,1,{"$nulls":3},{"$f":"IF(COUNTIF(TasksTable_Blue67[[#This Row],[DOM]:[SÁB]],\">0\")*TasksTable_Blue67[[#This Row],[Valor]]=0,\"\",COUNTIF(TasksTable_Blue67[[#This Row],[DOM]:[SÁB]],\">0\")*TasksTable_Blue67[[#This Row],[Valor]])","v":{"v":4,"d":"4.00 €"}}]
[null,"Regar las plantas",{"v":1,"d":"1.00 €"},{"$nulls":7},{"$f":"IF(COUNTIF(TasksTable_Blue67[[#This Row],[DOM]:[SÁB]],\">0\")*TasksTable_Blue67[[#This Row],[Valor]]=0,\"\",COUNTIF(TasksTable_Blue67[[#This Row],[DOM]:[SÁB]],\">0\")*TasksTable_Blue67[[#This Row],[Valor]])","v":""}]
[null,"Asignación dada en fecha:","2020-05-05",{"$nulls":3},"Asignación total obtenida:",{"$nulls":3},{"$f":"SUM(TasksTable_Blue67[Total])","v":{"v":7.5,"d":"7.50 €"}}]

{"sheet":"Verde","index":2,"n_rows":11,"n_cols":11,"rows_kept":11,"merged":[[1,2,1,10],[10,6,10,9],[11,6,11,9]]}
[]
[null,null,"Rastreador de asignación de Elvira"]
[null,"Tareas","Valor","DOM","LUN","MAR","MIÉ","JUE","VIE","SÁB","Total"]
[null,"Hacer la cama",{"v":0.5,"d":"0.50 €"},1,1,null,1,{"$nulls":3},{"$f":"IF(COUNTIF(TasksTable_Blue678[[#This Row],[DOM]:[SÁB]],\">0\")*TasksTable_Blue678[[#This Row],[Valor]]=0,\"\",COUNTIF(TasksTable_Blue678[[#This Row],[DOM]:[SÁB]],\">0\")*TasksTable_Blue678[[#This Row],[Valor]])","v":{"v":1.5,"d":"1.50 €"}}]
[null,"Recoger juguetes",{"v":0.5,"d":"0.50 €"},null,1,1,{"$nulls":4},{"$f":"IF(COUNTIF(TasksTable_Blue678[[#This Row],[DOM]:[SÁB]],\">0\")*TasksTable_Blue678[[#This Row],[Valor]]=0,\"\",COUNTIF(TasksTable_Blue678[[#This Row],[DOM]:[SÁB]],\">0\")*TasksTable_Blue678[[#This Row],[Valor]])","v":{"v":1,"d":"1.00 €"}}]
[null,"Limpiar habitación",{"v":0.5,"d":"0.50 €"},{"$nulls":7},{"$f":"IF(COUNTIF(TasksTable_Blue678[[#This Row],[DOM]:[SÁB]],\">0\")*TasksTable_Blue678[[#This Row],[Valor]]=0,\"\",COUNTIF(TasksTable_Blue678[[#This Row],[DOM]:[SÁB]],\">0\")*TasksTable_Blue678[[#This Row],[Valor]])","v":""}]
[null,"Limpiar mesa",{"v":1,"d":"1.00 €"},null,null,1,{"$nulls":4},{"$f":"IF(COUNTIF(TasksTable_Blue678[[#This Row],[DOM]:[SÁB]],\">0\")*TasksTable_Blue678[[#This Row],[Valor]]=0,\"\",COUNTIF(TasksTable_Blue678[[#This Row],[DOM]:[SÁB]],\">0\")*TasksTable_Blue678[[#This Row],[Valor]])","v":{"v":1,"d":"1.00 €"}}]
[null,"Barrer el suelo",{"v":1,"d":"1.00 €"},{"$nulls":7},{"$f":"IF(COUNTIF(TasksTable_Blue678[[#This Row],[DOM]:[SÁB]],\">0\")*TasksTable_Blue678[[#This Row],[Valor]]=0,\"\",COUNTIF(TasksTable_Blue678[[#This Row],[DOM]:[SÁB]],\">0\")*TasksTable_Blue678[[#This Row],[Valor]])","v":""}]
[null,"Dar de comer a la mascota",{"v":1,"d":"1.00 €"},1,1,1,1,{"$nulls":3},{"$f":"IF(COUNTIF(TasksTable_Blue678[[#This Row],[DOM]:[SÁB]],\">0\")*TasksTable_Blue678[[#This Row],[Valor]]=0,\"\",COUNTIF(TasksTable_Blue678[[#This Row],[DOM]:[SÁB]],\">0\")*TasksTable_Blue678[[#This Row],[Valor]])","v":{"v":4,"d":"4.00 €"}}]
[null,"Regar las plantas",{"v":1,"d":"1.00 €"},{"$nulls":7},{"$f":"IF(COUNTIF(TasksTable_Blue678[[#This Row],[DOM]:[SÁB]],\">0\")*TasksTable_Blue678[[#This Row],[Valor]]=0,\"\",COUNTIF(TasksTable_Blue678[[#This Row],[DOM]:[SÁB]],\">0\")*TasksTable_Blue678[[#This Row],[Valor]])","v":""}]
[null,"Asignación dada en fecha:","2020-05-05",{"$nulls":3},"Asignación total obtenida:",{"$nulls":3},{"$f":"SUM(TasksTable_Blue678[Total])","v":{"v":7.5,"d":"7.50 €"}}]

{"sheet":"Naranja ","index":3,"n_rows":11,"n_cols":11,"rows_kept":11,"merged":[[1,2,1,10],[10,6,10,9],[11,6,11,9]]}
[]
[null,null,"Rastreador de asignación de Elvira"]
[null,"Tareas","Valor","DOM","LUN","MAR","MIÉ","JUE","VIE","SÁB","Total"]
[null,"Hacer la cama",{"v":0.5,"d":"0.50 €"},1,1,null,1,{"$nulls":3},{"$f":"IF(COUNTIF(TasksTable_Blue6710[[#This Row],[DOM]:[SÁB]],\">0\")*TasksTable_Blue6710[[#This Row],[Valor]]=0,\"\",COUNTIF(TasksTable_Blue6710[[#This Row],[DOM]:[SÁB]],\">0\")*TasksTable_Blue6710[[#This Row],[Valor]])","v":{"v":1.5,"d":"1.50 €"}}]
[null,"Recoger juguetes",{"v":0.5,"d":"0.50 €"},null,1,1,{"$nulls":4},{"$f":"IF(COUNTIF(TasksTable_Blue6710[[#This Row],[DOM]:[SÁB]],\">0\")*TasksTable_Blue6710[[#This Row],[Valor]]=0,\"\",COUNTIF(TasksTable_Blue6710[[#This Row],[DOM]:[SÁB]],\">0\")*TasksTable_Blue6710[[#This Row],[Valor]])","v":{"v":1,"d":"1.00 €"}}]
[null,"Limpiar habitación",{"v":0.5,"d":"0.50 €"},{"$nulls":7},{"$f":"IF(COUNTIF(TasksTable_Blue6710[[#This Row],[DOM]:[SÁB]],\">0\")*TasksTable_Blue6710[[#This Row],[Valor]]=0,\"\",COUNTIF(TasksTable_Blue6710[[#This Row],[DOM]:[SÁB]],\">0\")*TasksTable_Blue6710[[#This Row],[Valor]])","v":""}]
[null,"Limpiar mesa",{"v":1,"d":"1.00 €"},null,null,1,{"$nulls":4},{"$f":"IF(COUNTIF(TasksTable_Blue6710[[#This Row],[DOM]:[SÁB]],\">0\")*TasksTable_Blue6710[[#This Row],[Valor]]=0,\"\",COUNTIF(TasksTable_Blue6710[[#This Row],[DOM]:[SÁB]],\">0\")*TasksTable_Blue6710[[#This Row],[Valor]])","v":{"v":1,"d":"1.00 €"}}]
[null,"Barrer el suelo",{"v":1,"d":"1.00 €"},{"$nulls":7},{"$f":"IF(COUNTIF(TasksTable_Blue6710[[#This Row],[DOM]:[SÁB]],\">0\")*TasksTable_Blue6710[[#This Row],[Valor]]=0,\"\",COUNTIF(TasksTable_Blue6710[[#This Row],[DOM]:[SÁB]],\">0\")*TasksTable_Blue6710[[#This Row],[Valor]])","v":""}]
[null,"Dar de comer a la mascota",{"v":1,"d":"1.00 €"},1,1,1,1,{"$nulls":3},{"$f":"IF(COUNTIF(TasksTable_Blue6710[[#This Row],[DOM]:[SÁB]],\">0\")*TasksTable_Blue6710[[#This Row],[Valor]]=0,\"\",COUNTIF(TasksTable_Blue6710[[#This Row],[DOM]:[SÁB]],\">0\")*TasksTable_Blue6710[[#This Row],[Valor]])","v":{"v":4,"d":"4.00 €"}}]
[null,"Regar las plantas",{"v":1,"d":"1.00 €"},{"$nulls":7},{"$f":"IF(COUNTIF(TasksTable_Blue6710[[#This Row],[DOM]:[SÁB]],\">0\")*TasksTable_Blue6710[[#This Row],[Valor]]=0,\"\",COUNTIF(TasksTable_Blue6710[[#This Row],[DOM]:[SÁB]],\">0\")*TasksTable_Blue6710[[#This Row],[Valor]])","v":""}]
[null,"Asignación dada en fecha:","2020-05-05",{"$nulls":3},"Asignación total obtenida:",{"$nulls":3},{"$f":"SUM(TasksTable_Blue6710[Total])","v":{"v":7.5,"d":"7.50 €"}}]

{"sheet":"Rojo","index":4,"n_rows":11,"n_cols":11,"rows_kept":11,"merged":[[1,2,1,10],[10,6,10,9],[11,6,11,9]]}
[]
[null,null,"Rastreador de asignación de Elvira"]
[null,"Tareas","Valor","DOM","LUN","MAR","MIÉ","JUE","VIE","SÁB","Total"]
[null,"Hacer la cama",{"v":0.5,"d":"0.50 €"},1,1,null,1,{"$nulls":3},{"$f":"IF(COUNTIF(TasksTable_Blue671011[[#This Row],[DOM]:[SÁB]],\">0\")*TasksTable_Blue671011[[#This Row],[Valor]]=0,\"\",COUNTIF(TasksTable_Blue671011[[#This Row],[DOM]:[SÁB]],\">0\")*TasksTable_Blue671011[[#This Row],[Valor]])","v":{"v":1.5,"d":"1.50 €"}}]
[null,"Recoger juguetes",{"v":0.5,"d":"0.50 €"},null,1,1,{"$nulls":4},{"$f":"IF(COUNTIF(TasksTable_Blue671011[[#This Row],[DOM]:[SÁB]],\">0\")*TasksTable_Blue671011[[#This Row],[Valor]]=0,\"\",COUNTIF(TasksTable_Blue671011[[#This Row],[DOM]:[SÁB]],\">0\")*TasksTable_Blue671011[[#This Row],[Valor]])","v":{"v":1,"d":"1.00 €"}}]
[null,"Limpiar habitación",{"v":0.5,"d":"0.50 €"},{"$nulls":7},{"$f":"IF(COUNTIF(TasksTable_Blue671011[[#This Row],[DOM]:[SÁB]],\">0\")*TasksTable_Blue671011[[#This Row],[Valor]]=0,\"\",COUNTIF(TasksTable_Blue671011[[#This Row],[DOM]:[SÁB]],\">0\")*TasksTable_Blue671011[[#This Row],[Valor]])","v":""}]
[null,"Limpiar mesa",{"v":1,"d":"1.00 €"},null,null,1,{"$nulls":4},{"$f":"IF(COUNTIF(TasksTable_Blue671011[[#This Row],[DOM]:[SÁB]],\">0\")*TasksTable_Blue671011[[#This Row],[Valor]]=0,\"\",COUNTIF(TasksTable_Blue671011[[#This Row],[DOM]:[SÁB]],\">0\")*TasksTable_Blue671011[[#This Row],[Valor]])","v":{"v":1,"d":"1.00 €"}}]
[null,"Barrer el suelo",{"v":1,"d":"1.00 €"},{"$nulls":7},{"$f":"IF(COUNTIF(TasksTable_Blue671011[[#This Row],[DOM]:[SÁB]],\">0\")*TasksTable_Blue671011[[#This Row],[Valor]]=0,\"\",COUNTIF(TasksTable_Blue671011[[#This Row],[DOM]:[SÁB]],\">0\")*TasksTable_Blue671011[[#This Row],[Valor]])","v":""}]
[null,"Dar de comer a la mascota",{"v":1,"d":"1.00 €"},1,1,1,1,{"$nulls":3},{"$f":"IF(COUNTIF(TasksTable_Blue671011[[#This Row],[DOM]:[SÁB]],\">0\")*TasksTable_Blue671011[[#This Row],[Valor]]=0,\"\",COUNTIF(TasksTable_Blue671011[[#This Row],[DOM]:[SÁB]],\">0\")*TasksTable_Blue671011[[#This Row],[Valor]])","v":{"v":4,"d":"4.00 €"}}]
[null,"Regar las plantas",{"v":1,"d":"1.00 €"},{"$nulls":7},{"$f":"IF(COUNTIF(TasksTable_Blue671011[[#This Row],[DOM]:[SÁB]],\">0\")*TasksTable_Blue671011[[#This Row],[Valor]]=0,\"\",COUNTIF(TasksTable_Blue671011[[#This Row],[DOM]:[SÁB]],\">0\")*TasksTable_Blue671011[[#This Row],[Valor]])","v":""}]
[null,"Asignación dada en fecha:","2020-05-05",{"$nulls":3},"Asignación total obtenida:",{"$nulls":3},{"$f":"SUM(TasksTable_Blue671011[Total])","v":{"v":7.5,"d":"7.50 €"}}]

{"sheet":"Púrpura","index":5,"n_rows":11,"n_cols":11,"rows_kept":11,"merged":[[1,2,1,10],[10,6,10,9],[11,6,11,9]]}
[]
[null,null,"Rastreador de asignación de Elvira"]
[null,"Tareas","Valor","DOM","LUN","MAR","MIÉ","JUE","VIE","SÁB","Total"]
[null,"Hacer la cama",{"v":0.5,"d":"0.50 €"},1,1,null,1,{"$nulls":3},{"$f":"IF(COUNTIF(TasksTable_Blue6789[[#This Row],[DOM]:[SÁB]],\">0\")*TasksTable_Blue6789[[#This Row],[Valor]]=0,\"\",COUNTIF(TasksTable_Blue6789[[#This Row],[DOM]:[SÁB]],\">0\")*TasksTable_Blue6789[[#This Row],[Valor]])","v":{"v":1.5,"d":"1.50 €"}}]
[null,"Recoger juguetes",{"v":0.5,"d":"0.50 €"},null,1,1,{"$nulls":4},{"$f":"IF(COUNTIF(TasksTable_Blue6789[[#This Row],[DOM]:[SÁB]],\">0\")*TasksTable_Blue6789[[#This Row],[Valor]]=0,\"\",COUNTIF(TasksTable_Blue6789[[#This Row],[DOM]:[SÁB]],\">0\")*TasksTable_Blue6789[[#This Row],[Valor]])","v":{"v":1,"d":"1.00 €"}}]
[null,"Limpiar habitación",{"v":0.5,"d":"0.50 €"},{"$nulls":7},{"$f":"IF(COUNTIF(TasksTable_Blue6789[[#This Row],[DOM]:[SÁB]],\">0\")*TasksTable_Blue6789[[#This Row],[Valor]]=0,\"\",COUNTIF(TasksTable_Blue6789[[#This Row],[DOM]:[SÁB]],\">0\")*TasksTable_Blue6789[[#This Row],[Valor]])","v":""}]
[null,"Limpiar mesa",{"v":1,"d":"1.00 €"},null,null,1,{"$nulls":4},{"$f":"IF(COUNTIF(TasksTable_Blue6789[[#This Row],[DOM]:[SÁB]],\">0\")*TasksTable_Blue6789[[#This Row],[Valor]]=0,\"\",COUNTIF(TasksTable_Blue6789[[#This Row],[DOM]:[SÁB]],\">0\")*TasksTable_Blue6789[[#This Row],[Valor]])","v":{"v":1,"d":"1.00 €"}}]
[null,"Barrer el suelo",{"v":1,"d":"1.00 €"},{"$nulls":7},{"$f":"IF(COUNTIF(TasksTable_Blue6789[[#This Row],[DOM]:[SÁB]],\">0\")*TasksTable_Blue6789[[#This Row],[Valor]]=0,\"\",COUNTIF(TasksTable_Blue6789[[#This Row],[DOM]:[SÁB]],\">0\")*TasksTable_Blue6789[[#This Row],[Valor]])","v":""}]
[null,"Dar de comer a la mascota",{"v":1,"d":"1.00 €"},1,1,1,1,{"$nulls":3},{"$f":"IF(COUNTIF(TasksTable_Blue6789[[#This Row],[DOM]:[SÁB]],\">0\")*TasksTable_Blue6789[[#This Row],[Valor]]=0,\"\",COUNTIF(TasksTable_Blue6789[[#This Row],[DOM]:[SÁB]],\">0\")*TasksTable_Blue6789[[#This Row],[Valor]])","v":{"v":4,"d":"4.00 €"}}]
[null,"Regar las plantas",{"v":1,"d":"1.00 €"},{"$nulls":7},{"$f":"IF(COUNTIF(TasksTable_Blue6789[[#This Row],[DOM]:[SÁB]],\">0\")*TasksTable_Blue6789[[#This Row],[Valor]]=0,\"\",COUNTIF(TasksTable_Blue6789[[#This Row],[DOM]:[SÁB]],\">0\")*TasksTable_Blue6789[[#This Row],[Valor]])","v":""}]
[null,"Asignación dada en fecha:","2020-05-05",{"$nulls":3},"Asignación total obtenida:",{"$nulls":3},{"$f":"SUM(TasksTable_Blue6789[Total])","v":{"v":7.5,"d":"7.50 €"}}]